fUST/lending_fUST_20241230
["ID","MTS","AMOUNT","RATE_DAILY","PERIOD"]
[347116543,1735504246460,-515.092733,0.00021046,2]
[347116545,1735504246471,-515.092733,0.00021046,2]
[347116547,1735504246480,-515.092733,0.00021046,2]
[347116549,1735504246489,-515.092733,0.00021046,2]
[347116551,1735504246498,-515.092733,0.00021046,2]
[347116553,1735504246507,-515.092733,0.00021046,2]
[347116555,1735504246516,-515.092733,0.00021046,2]
[347116557,1735504246526,-515.092733,0.00021046,2]
[347116559,1735504246535,-515.092733,0.00021046,2]
[347116561,1735504246544,-515.092733,0.00021046,2]
[347116563,1735504246554,-515.092733,0.00021046,2]
[347116565,1735504246563,-515.092733,0.00021046,2]
[347116567,1735504246573,-515.092732,0.00021046,2]
[347116569,1735504246583,-633.466653,0.00021046,2]
[347116571,1735504246593,-633.466653,0.00021046,2]
[347116573,1735504246602,-633.466653,0.00021046,2]
[347116575,1735504246611,-633.466653,0.00021046,2]
[347116578,1735504246620,-633.466653,0.00021046,2]
[347116580,1735504246629,-633.466653,0.00021046,2]
[347116581,1735504246638,-633.466653,0.00021046,2]
[347116584,1735504246647,-633.466653,0.00021046,2]
[347116586,1735504246656,-633.466653,0.00021046,2]
[347116588,1735504246665,-633.466653,0.00021046,2]
[347116591,1735504246678,-633.466653,0.00021046,2]
[347116594,1735504246687,-633.466653,0.00021046,2]
[347116596,1735504246696,-633.466653,0.00021046,2]
[347116598,1735504246705,-633.466653,0.00021046,2]
[347116600,1735504246714,-633.466653,0.00021046,2]
[347116602,1735504246724,-633.466653,0.00021046,2]
[347116604,1735504246733,-633.466653,0.00021046,2]
[347116606,1735504246743,-633.466653,0.00021046,2]
[347116608,1735504246752,-633.466653,0.00021046,2]
[347116610,1735504246762,-633.466657,0.00021046,2]
[347116612,1735504246771,-151.0,0.00021046,2]
[347116614,1735504246780,-151.0,0.00021046,2]
[347116616,1735504246789,-151.0,0.00021046,2]
[347116617,1735504246799,-151.0,0.00021046,2]
[347116618,1735504246808,-151.0,0.00021046,2]
[347116619,1735504246817,-151.0,0.00021046,2]
[347116620,1735504246826,-151.0,0.00021046,2]
[347116621,1735504246835,-151.0,0.00021046,2]
[347116622,1735504246844,-151.0,0.00021046,2]
[347116623,1735504246854,-151.0,0.00021046,2]
[347116625,1735504246863,-151.0,0.00021046,2]
[347116627,1735504246872,-245.263822,0.00021046,2]
[347116629,1735504246881,-191.099266,0.00021046,2]
[347116631,1735504246890,-191.099266,0.00021046,2]
[347116633,1735504246899,-191.099266,0.00021046,2]
[347116635,1735504246907,-191.099266,0.00021046,2]
[347116637,1735504246916,-191.099266,0.00021046,2]
[347116639,1735504246925,-191.099266,0.00021046,2]
[347116641,1735504246934,-191.099266,0.00021046,2]
[347116643,1735504246943,-571.956886,0.00021046,2]
[347116645,1735504246952,-191.099266,0.00021046,2]
[347116647,1735504246961,-571.956886,0.00021046,2]
[347116649,1735504246971,-571.956886,0.00021046,2]
[347116651,1735504246979,-571.956886,0.00021046,2]
[347116653,1735504246989,-191.099266,0.00021046,2]
[347116655,1735504246998,-151.0,0.00021046,2]
[347116657,1735504247007,-571.956886,0.00021046,2]
[347116659,1735504247016,-151.0,0.00021046,2]
[347116661,1735504247025,-191.099266,0.00021046,2]
[347116663,1735504247034,-571.956886,0.00021046,2]
[347116665,1735504247043,-151.0,0.00021046,2]
[347116667,1735504247052,-191.099266,0.00021046,2]
[347116669,1735504247061,-571.956886,0.00021046,2]
[347116671,1735504247071,-151.0,0.00021046,2]
[347116673,1735504247079,-571.956886,0.00021046,2]
[347116675,1735504247089,-191.099266,0.00021046,2]
[347116677,1735504247099,-571.956886,0.00021046,2]
[347116679,1735504247108,-151.0,0.00021046,2]
[347116681,1735504247117,-191.099266,0.00021046,2]
[347116683,1735504247126,-571.956886,0.00021046,2]
[347116685,1735504247136,-151.0,0.00021046,2]
[347116687,1735504247145,-151.0,0.00021046,2]
[347116689,1735504247154,-151.0,0.00021046,2]
[347116691,1735504247163,-191.099266,0.00021046,2]
[347116693,1735504247172,-571.956886,0.00021046,2]
[347116695,1735504247181,-151.0,0.00021046,2]
[347116697,1735504247190,-151.0,0.00021046,2]
[347116699,1735504247200,-571.956886,0.00021046,2]
[347116701,1735504247209,-151.0,0.00021046,2]
[347116703,1735504247218,-151.0,0.00021046,2]
[347116705,1735504247229,-571.956886,0.00021046,2]
[347116707,1735504247237,-191.099266,0.00021046,2]
[347116709,1735504247246,-151.0,0.00021046,2]
[347116711,1735504247255,-151.0,0.00021046,2]
[347116713,1735504247264,-571.956886,0.00021046,2]
[347116715,1735504247273,-151.0,0.00021046,2]
[347116717,1735504247282,-191.099266,0.00021046,2]
[347116719,1735504247291,-571.956886,0.00021046,2]
[347116721,1735504247300,-151.0,0.00021046,2]
[347116723,1735504247309,-191.099266,0.00021046,2]
[347116725,1735504247318,-571.956886,0.00021046,2]
[347116727,1735504247328,-154.671895,0.00021046,2]
[347116729,1735504247337,-571.956886,0.00021046,2]
[347116731,1735504247346,-191.099266,0.00021046,2]
[347116733,1735504247355,-191.099266,0.00021046,2]
[347116735,1735504247364,-571.956886,0.00021046,2]
[347116737,1735504247373,-191.099256,0.00021046,2]
[347116739,1735504247382,-571.956886,0.00021046,2]
[347116741,1735504247391,-571.956884,0.00021046,2]
[347116743,1735504247401,-151.0,0.00021046,2]
[347116745,1735504247410,-151.0,0.00021046,2]
[347116748,1735504247420,-151.0,0.00021046,2]
[347116750,1735504247430,-151.0,0.00021046,2]
[347116752,1735504247439,-151.0,0.00021046,2]
[347116754,1735504247448,-151.0,0.00021046,2]
[347116756,1735504247458,-151.0,0.00021046,2]
[347116758,1735504247467,-151.0,0.00021046,2]
[347116760,1735504247477,-151.0,0.00021046,2]
[347116762,1735504247486,-151.0,0.00021046,2]
[347116764,1735504247495,-151.0,0.00021046,2]
[347116766,1735504247504,-151.0,0.00021046,2]
[347116768,1735504247514,-196.450681,0.00021046,2]
[347116770,1735504247523,-258.486187,0.00021046,2]
[347116772,1735504247532,-151.0,0.00021046,2]
[347116774,1735504247542,-151.0,0.00021046,2]
[347116776,1735504247551,-151.0,0.00021046,2]
[347116778,1735504247561,-151.0,0.00021046,2]
[347116780,1735504247570,-151.0,0.00021046,2]
[347116782,1735504247579,-151.0,0.00021046,2]
[347116784,1735504247589,-151.0,0.00021046,2]
[347116786,1735504247598,-151.0,0.00021046,2]
[347116788,1735504247607,-158.946282,0.00021046,2]
[347116790,1735504247616,-196.431731,0.00021046,2]
[347116792,1735504247625,-151.0,0.00021046,2]
[347116794,1735504247634,-151.0,0.00021046,2]
[347116796,1735504247643,-151.0,0.00021046,2]
[347116798,1735504247652,-151.0,0.00021046,2]
[347116800,1735504247661,-151.0,0.00021046,2]
[347116802,1735504247670,-151.0,0.00021046,2]
[347116804,1735504247683,-151.0,0.00021046,2]
[347116806,1735504247691,-151.0,0.00021046,2]
[347116808,1735504247701,-300.668862,0.00021046,2]
[347116810,1735504247710,-151.0,0.00021046,2]
[347116812,1735504247720,-151.0,0.00021046,2]
[347116814,1735504247730,-153.445269,0.00021046,2]
[347116816,1735504247739,-374.149352,0.00021046,2]
[347116818,1735504247748,-374.149352,0.00021046,2]
[347116820,1735504247760,-374.149352,0.00021046,2]
[347116822,1735504247769,-374.149352,0.00021046,2]
[347116824,1735504247778,-374.149352,0.00021046,2]
[347116826,1735504247787,-374.149352,0.00021046,2]
[347116828,1735504247797,-374.149352,0.00021046,2]
[347116830,1735504247806,-374.149352,0.00021046,2]
[347116832,1735504247815,-374.149352,0.00021046,2]
[347116834,1735504247823,-151.0,0.00021046,2]
[347116836,1735504247832,-151.0,0.00021046,2]
[347116838,1735504247842,-151.0,0.00021046,2]
[347116840,1735504247851,-374.149352,0.00021046,2]
[347116842,1735504247860,-374.149352,0.00021046,2]
[347116844,1735504247869,-374.149352,0.00021046,2]
[347116846,1735504247878,-374.149352,0.00021046,2]
[347116848,1735504247887,-374.149352,0.00021046,2]
[347116850,1735504247895,-374.149352,0.00021046,2]
[347116852,1735504247904,-374.149352,0.00021046,2]
[347116854,1735504247913,-151.0,0.00021046,2]
[347116856,1735504247923,-374.149352,0.00021046,2]
[347116858,1735504247932,-151.0,0.00021046,2]
[347116860,1735504247940,-374.149352,0.00021046,2]
[347116862,1735504247949,-374.149352,0.00021046,2]
[347116864,1735504247958,-374.14935492,0.00021046,2]
[347116866,1735504247967,-159.752614,0.00021046,2]
[347116868,1735504247978,-151.0,0.00021046,2]
[347116870,1735504247987,-151.0,0.00021046,2]
[347116872,1735504247997,-151.0,0.00021046,2]
[347116874,1735504248006,-151.0,0.00021046,2]
[347116876,1735504248015,-151.0,0.00021046,2]
[347116878,1735504248023,-151.0,0.00021046,2]
[347116880,1735504248033,-151.0,0.00021046,2]
[347116882,1735504248042,-151.0,0.00021046,2]
[347116884,1735504248051,-151.0,0.00021046,2]
[347116886,1735504248060,-151.0,0.00021046,2]
[347116888,1735504248070,-151.0,0.00021046,2]
[347116890,1735504248080,-151.0,0.00021046,2]
[347116892,1735504248090,-73280.23314957,0.00021046,10]
[347116906,1735504248215,-2093.09758197,0.00021046,10]
[347116919,1735504248340,-151.0,0.00021046,2]
[347116921,1735504248350,-151.0,0.00021046,2]
[347116924,1735504248360,-151.0,0.00021046,2]
[347116925,1735504248370,-47.0,0.00021046,2]
[347116928,1735504248381,-104.0,0.00021046,2]
[347116930,1735504248391,-151.0,0.00021046,2]
[347116939,1735504248479,-151.0,0.00021046,2]
[347116940,1735504248488,-1200.0,0.00021046,2]
[347116941,1735504248499,-233.274562,0.00021046,2]
[347116942,1735504248508,-27077.19947504,0.00021046,10]
[347116943,1735504248520,-1401.74951982,0.00021046,10]
[347116944,1735504248531,-4364.22547379,0.00021046,10]
[347116945,1735504248542,-24876.22833333,0.00021046,10]
[347116946,1735504248564,-2402.23391861,0.00021046,10]
[347116947,1735504248576,-11374.3794396,0.00021046,10]
[347116985,1735505432619,-400.0,0.00013973,2]
[347116986,1735505432629,-819.55411179,0.00018946,2]
[347116987,1735505432638,-150.0,0.00019,2]
[347116988,1735505432647,-164.984708,0.00019202,2]
[347116989,1735505432656,-5.51819421,0.00019707,2]
[347116990,1735505432668,-506.33737312,0.00019707,2]
[347116991,1735505432679,-1917.31932958,0.00019707,2]
[347117034,1735505438537,-2735.58266564,0.00019707,2]
[347117037,1735505438546,-465.59758697,0.00019792,2]
[347117039,1735505438556,-495.48,0.0002,2]
[347117041,1735505438565,-150.0,0.0002,7]
[347117043,1735505438574,-500.0,0.00020313,2]
[347117045,1735505438583,-400.0,0.00020447,2]
[347117047,1735505438593,-500.0,0.00020587,2]
[347117049,1735505438603,-504.06826586,0.00020616,2]
[347117051,1735505438614,-3391.45927572,0.00020616,2]
[347117053,1735505438626,-866.945304,0.00020616,2]
[347117055,1735505438637,-862.04420907,0.00020616,2]
[347117057,1735505438649,-12410.27539139,0.00020616,2]
[347117059,1735505438661,-950.00000017,0.00020616,2]
[347117061,1735505438672,-16503.99730257,0.00020616,2]
[347117065,1735505438702,-4772.88908854,0.00020616,2]
[347117067,1735505438712,-300.0,0.000207,9]
[347117069,1735505438721,-236.0753596,0.00020835,2]
[347117071,1735505438730,-306.7136973,0.00020899,2]
[347117073,1735505438740,-394.0,0.00020913,2]
[347117075,1735505438752,-500.0,0.00021044,2]
[347117077,1735505438761,-1225.32,0.00021044,2]
[347117079,1735505438771,-500.0,0.00021044,2]
[347117081,1735505438781,-409.37599212,0.00021044,2]
[347117084,1735505438790,-500.0,0.00021044,2]
[347117087,1735505438799,-355.62586244,0.00021044,2]
[347117091,1735505438811,-144.37413756,0.00021044,2]
[347117094,1735505438820,-341.61628808,0.00021044,2]
[347117097,1735505438829,-500.0,0.00021044,2]
[347117100,1735505438839,-500.0,0.00021044,2]
[347117102,1735505438848,-500.0,0.00021044,2]
[347117104,1735505438857,-500.0,0.00021044,2]
[347117106,1735505438867,-236.9235127,0.00021044,2]
[347117108,1735505438876,-151.0,0.00021045,2]
[347117110,1735505438886,-151.0,0.00021045,2]
[347117112,1735505438895,-151.0,0.00021045,2]
[347117114,1735505438904,-151.0,0.00021045,2]
[347117116,1735505438913,-151.0,0.00021045,2]
[347117118,1735505438922,-151.0,0.00021045,2]
[347117120,1735505438931,-151.0,0.00021045,2]
[347117122,1735505438940,-151.0,0.00021045,2]
[347117124,1735505438949,-151.0,0.00021045,2]
[347117126,1735505438959,-151.0,0.00021045,2]
[347117128,1735505438968,-151.0,0.00021045,2]
[347117130,1735505438978,-151.0,0.00021045,2]
[347117132,1735505438987,-151.0,0.00021045,2]
[347117134,1735505438996,-151.0,0.00021045,2]
[347117136,1735505439006,-1602.76647951,0.00021045,2]
[347117138,1735505439015,-10335.3195822,0.00021045,2]
[347117140,1735505439027,-480.02913384,0.00021045,2]
[347117283,1735505440567,-751.47048345,0.00021045,2]
[347117285,1735505440577,-64517.53716471,0.00021045,10]
[347117287,1735505440590,-1389.52865173,0.00021045,10]
[347117292,1735505440621,-1069.03893575,0.00021045,10]
[347117298,1735505440677,-1525.41293957,0.00021045,10]
[347117433,1735505443650,-2750.85748365,0.00021045,10]
[347117671,1735505446592,-22264.148628,0.00021045,10]
[347117677,1735505446646,-9116.90109278,0.00021045,10]
[347117763,1735506258118,500.0,0.00021075,120]
[347117808,1735506638743,-400.0,0.00013973,2]
[347117809,1735506638752,-491.85929846,0.00018819,2]
[347117810,1735506638764,-4672.89826409,0.00018819,2]
[347117811,1735506638773,-1839.62172161,0.00018975,2]
[347117812,1735506638783,-244.1481867,0.00019504,2]
[347117813,1735506638792,-500.715,0.0002,2]
[347117814,1735506638802,-3789.09260788,0.00020289,3]
[347117815,1735506638811,-279.66716388,0.00020447,2]
[347117816,1735506638852,-120.33283612,0.00020447,2]
[347117817,1735506638861,-1000.0,0.00020824,2]
[347117818,1735506638871,-165.84645889,0.00020834,2]
[347117819,1735506638880,-8323.54140996,0.00020835,2]
[347117820,1735506638889,-801.38323976,0.00020835,2]
[347117821,1735506638898,-7331.08104875,0.00020835,2]
[347117822,1735506638910,-63683.30757705,0.00020835,2]
[347117823,1735506638920,-236.0753597,0.00020835,2]
[347117824,1735506638929,-43060.06706325,0.00020835,5]
[347117826,1735506638942,-2026.76720729,0.00020835,5]
[347117881,1735506640834,-1665.55000003,0.00020835,5]
[347117961,1735506643733,-601.63635246,0.00020835,5]
[347117964,1735506643750,-804.82261135,0.00020835,5]
[347118000,1735506645762,-192.82506778,0.00020799,2]
[347118001,1735506645772,-731006.83193692,0.00020835,5]
[347118002,1735506645818,-1035.5468875,0.00020835,5]
[347118019,1735507717654,379.87675,0.0002,120]
[347118020,1735507810250,-359.41363992,0.00013695,2]
[347118083,1735507832121,-4604.20959604,0.00013695,2]
[347118085,1735507832131,-400.0,0.00013973,2]
[347118087,1735507832140,-765.56254027,0.00017,2]
[347118089,1735507832149,-5164.75756255,0.00018791,2]
[347118091,1735507832159,-403.72700289,0.000188,2]
[347118092,1735507832168,-2088.58269023,0.000189,2]
[347118094,1735507832177,-241.99,0.00019,2]
[347118096,1735507832186,-231.940774,0.0001942,2]
[347118098,1735507832196,-210.66221632,0.00019999,2]
[347118099,1735507832205,-500.0,0.00019999,2]
[347118100,1735507832215,-500.0,0.00019999,2]
[347118101,1735507832224,-500.96165095,0.00019999,2]
[347118102,1735507832234,-14735.1649127,0.0002,2]
[347118103,1735507832243,-10898.89468153,0.0002,2]
[347118104,1735507832253,-15716.13703605,0.0002,2]
[347118105,1735507832262,-353.25185572,0.0002,2]
[347118106,1735507832271,-554.492,0.0002,2]
[347118107,1735507832280,-20956.40684538,0.000201,2]
[347118108,1735507832291,-500.57639798,0.0002015,2]
[347118110,1735507832299,-7996.68853202,0.0002021,2]
[347118112,1735507832309,-500.0,0.00020288,2]
[347118114,1735507832318,-500.0,0.00020288,2]
[347118116,1735507832327,-500.0,0.00020288,2]
[347118118,1735507832337,-500.0,0.00020288,2]
[347118120,1735507832347,-3710.3326441,0.00020289,3]
[347118122,1735507832356,-5984.59450068,0.00020289,3]
[347118124,1735507832366,-8976.89075102,0.00020289,3]
[347118126,1735507832375,-5164.75756255,0.00020289,3]
[347118128,1735507832385,-5164.75756255,0.00020289,3]
[347118129,1735507832394,-8539.67896945,0.00020289,3]
[347118131,1735507832403,-400.0,0.00020447,2]
[347118133,1735507832413,-152.0,0.00020474,2]
[347118135,1735507832433,-192.27416235,0.00020562,2]
[347118137,1735507832443,-610.92,0.00020562,2]
[347118139,1735507832453,-500.0,0.00020562,2]
[347118141,1735507832462,-32545.41385628,0.00020735,3]
[347118143,1735507832472,-5164.75756255,0.00020735,3]
[347118145,1735507832482,-190.41871737,0.00020735,7]
[347118147,1735507832491,-190.41871737,0.00020735,7]
[347118149,1735507832501,-190.41871737,0.00020735,7]
[347118151,1735507832511,-190.41871737,0.00020735,7]
[347118153,1735507832520,-190.41871737,0.00020735,7]
[347118155,1735507832530,-190.41871737,0.00020735,7]
[347118157,1735507832541,-190.41871737,0.00020735,7]
[347118159,1735507832550,-190.41871737,0.00020735,7]
[347118161,1735507832560,-190.41871737,0.00020735,7]
[347118163,1735507832570,-190.41871737,0.00020735,7]
[347118165,1735507832579,-190.41871737,0.00020735,7]
[347118167,1735507832589,-190.41871737,0.00020735,7]
[347118169,1735507832598,-190.41871737,0.00020735,7]
[347118170,1735507832608,-190.41871737,0.00020735,7]
[347118171,1735507832618,-190.41871737,0.00020735,7]
[347118172,1735507832627,-190.41871737,0.00020735,7]
[347118173,1735507832636,-190.41871737,0.00020735,7]
[347118174,1735507832646,-190.41871737,0.00020735,7]
[347118175,1735507832655,-190.41871737,0.00020735,7]
[347118176,1735507832665,-190.41,0.00020735,7]
[347118177,1735507832674,-285.62807606,0.00020735,7]
[347118178,1735507832684,-285.62807606,0.00020735,7]
[347118179,1735507832693,-285.62807606,0.00020735,7]
[347118180,1735507832702,-285.62807606,0.00020735,7]
[347118181,1735507832711,-285.62807606,0.00020735,7]
[347118182,1735507832721,-285.62807606,0.00020735,7]
[347118183,1735507832730,-285.62807606,0.00020735,7]
[347118184,1735507832740,-285.62807606,0.00020735,7]
[347118185,1735507832749,-285.62807606,0.00020735,7]
[347118186,1735507832759,-285.62807606,0.00020735,7]
[347118187,1735507832768,-285.62807606,0.00020735,7]
[347118188,1735507832778,-285.62807606,0.00020735,7]
[347118189,1735507832787,-285.62807606,0.00020735,7]
[347118190,1735507832796,-285.62807606,0.00020735,7]
[347118191,1735507832806,-285.62807606,0.00020735,7]
[347118192,1735507832816,-285.62807606,0.00020735,7]
[347118193,1735507832825,-285.62807606,0.00020735,7]
[347118194,1735507832834,-285.62807606,0.00020735,7]
[347118195,1735507832844,-285.62807606,0.00020735,7]
[347118196,1735507832853,-285.62,0.00020735,7]
[347118197,1735507832862,-231.47,0.00020735,7]
[347118198,1735507832871,-173.60546689,0.00020735,7]
[347118199,1735507832881,-173.6,0.00020735,7]
[347118200,1735507832891,-500.0,0.0002077,5]
[347118201,1735507832900,-500.0,0.00020773,2]
[347118202,1735507832910,-500.0,0.00020773,2]
[347118203,1735507832920,-500.0,0.00020799,2]
[347118204,1735507832930,-500.0,0.00020799,2]
[347118205,1735507832939,-500.0,0.00020799,2]
[347118206,1735507832949,-500.0,0.00020799,2]
[347118207,1735507832958,-500.0,0.00020799,2]
[347118208,1735507832968,-500.0,0.00020799,2]
[347118209,1735507832978,-500.0,0.00020799,2]
[347118210,1735507832988,-500.0,0.00020799,2]
[347118211,1735507832997,-499.0,0.00020799,2]
[347118212,1735507833007,-511.32454678,0.00020799,2]
[347118213,1735507833017,-1346.81,0.00020799,2]
[347118214,1735507833027,-502.10993939,0.00020799,2]
[347118215,1735507833037,-500.0,0.00020799,2]
[347118216,1735507833047,-500.0,0.00020799,2]
[347118217,1735507833057,-500.0,0.00020799,2]
[347118218,1735507833067,-500.0,0.00020799,2]
[347118219,1735507833077,-500.0,0.00020799,2]
[347118220,1735507833087,-500.0,0.00020799,2]
[347118221,1735507833097,-500.0,0.00020799,2]
[347118222,1735507833109,-500.0,0.00020799,2]
[347118223,1735507833122,-500.0,0.00020799,2]
[347118224,1735507833132,-500.0,0.00020799,2]
[347118225,1735507833142,-500.0,0.00020799,2]
[347118226,1735507833152,-500.0,0.00020799,2]
[347118227,1735507833163,-500.0,0.00020799,2]
[347118228,1735507833173,-500.0,0.00020799,2]
[347118229,1735507833183,-100000.0,0.000208,2]
[347118230,1735507833193,-100000.0,0.000208,2]
[347118231,1735507833203,-151.0,0.000208,2]
[347118232,1735507833213,-401.853172,0.000208,2]
[347118233,1735507833223,-419.067295,0.000208,2]
[347118234,1735507833234,-401.853172,0.000208,2]
[347118235,1735507833244,-419.067295,0.000208,2]
[347118236,1735507833254,-182.066358,0.000208,2]
[347118237,1735507833263,-151.0,0.000208,2]
[347118238,1735507833274,-182.066358,0.000208,2]
[347118239,1735507833283,-306.0,0.00020822,2]
[347118240,1735507833293,-500.0,0.00020834,2]
[347118241,1735507833302,-500.0,0.00020834,2]
[347118242,1735507833313,-500.0,0.00020834,2]
[347118243,1735507833323,-500.0,0.00020834,2]
[347118244,1735507833333,-422.41771024,0.00020834,2]
[347118245,1735507833343,-626.61517423,0.00020834,2]
[347118246,1735507833352,-500.0,0.00020834,2]
[347118247,1735507833361,-500.0,0.00020834,2]
[347118248,1735507833372,-500.0,0.00020834,2]
[347118249,1735507833382,-500.0,0.00020834,2]
[347118250,1735507833391,-500.0,0.00020834,2]
[347118251,1735507833401,-500.0,0.00020834,2]
[347118252,1735507833410,-500.0,0.00020834,2]
[347118253,1735507833420,-500.0,0.00020834,2]
[347118254,1735507833430,-500.0,0.00020834,2]
[347118255,1735507833440,-500.0,0.00020834,2]
[347118256,1735507833449,-500.0,0.00020834,2]
[347118257,1735507833458,-500.0,0.00020834,2]
[347118258,1735507833468,-500.0,0.00020834,2]
[347118259,1735507833477,-500.0,0.00020834,2]
[347118260,1735507833487,-500.0,0.00020834,2]
[347118261,1735507833496,-500.0,0.00020834,2]
[347118262,1735507833506,-500.0,0.00020834,2]
[347118263,1735507833515,-500.0,0.00020834,2]
[347118264,1735507833525,-329.28,0.00020834,2]
[347118265,1735507833535,-500.0,0.00020834,2]
[347118266,1735507833546,-472.7103995,0.00020834,2]
[347118267,1735507833555,-500.0,0.00020834,2]
[347118268,1735507833565,-176.25810038,0.00020834,2]
[347118269,1735507833575,-500.0,0.00020834,2]
[347118270,1735507833584,-500.0,0.00020834,2]
[347118271,1735507833594,-500.0,0.00020834,2]
[347118272,1735507833603,-500.0,0.00020834,2]
[347118273,1735507833613,-504.37769987,0.00020834,2]
[347118274,1735507833623,-500.0,0.00020834,2]
[347118275,1735507833632,-500.0,0.00020834,2]
[347118276,1735507833642,-500.0,0.00020834,2]
[347118277,1735507833651,-500.0,0.00020834,2]
[347118278,1735507833661,-464.87498039,0.00020834,2]
[347118279,1735507833671,-500.0,0.00020834,2]
[347118280,1735507833681,-500.0,0.00020834,2]
[347118281,1735507833690,-1987.00623683,0.00020835,2]
[347118282,1735507833700,-17153.33972609,0.00020835,2]
[347118283,1735507833709,-150375.2897042,0.00020835,2]
[347118284,1735507833723,-1113.7875,0.00020835,2]
[347118285,1735507833735,-9169.80354238,0.00020835,2]
[347118286,1735507833747,-1500.34992,0.00020835,2]
[347118287,1735507833758,-1201.6102487,0.00020835,2]
[347118288,1735507833770,-389.86834307,0.00020835,2]
[347118289,1735507833785,-5075.2,0.00020835,2]
[347118290,1735507833802,-964.83054077,0.00020835,2]
[347118336,1735507838062,-151.0,0.000208,2]
[347118338,1735507838073,-332.6282561,0.00020834,2]
[347118340,1735507838083,-1924.78769896,0.00020835,2]
[347118342,1735507838095,-517.5299952,0.00020835,2]
[347118346,1735507838121,-566.10980878,0.00020835,2]
[347118348,1735507838133,-961.01068651,0.00020835,2]
[347118354,1735507838180,-14338.58696925,0.00020835,2]
[347118356,1735507838190,-3812.73135638,0.00020835,5]
[347118363,1735507838240,-743276.4625852,0.00020835,5]
[347118370,1735507838301,-3533.14503112,0.00020835,5]
[347118372,1735507838312,-2024.12599083,0.00020835,5]
[347118544,1735507839880,-193.275004,0.000208,2]
[347118546,1735507839889,-151.0,0.000208,2]
[347118548,1735507839899,-38.58150505,0.00020835,5]
[347118554,1735507839941,-2088.30008249,0.00020835,5]
[347118702,1735507842927,-193.275004,0.000208,2]
[347118703,1735507842937,-1630.65925339,0.00020835,5]
[347118704,1735507842949,-304.36517861,0.00020835,5]
[347118705,1735507842986,-563686.74799291,0.00020835,5]
[347118706,1735507842998,-255.84500219,0.00020835,5]
[347118707,1735507843010,-3770.3542416,0.00020835,5]
[347118708,1735507843023,-419.178,0.00020835,5]
[347118724,1735508280062,957.5332005,0.00025,120]
[347118736,1735509003383,1350.51956522,0.00013695,2]
[347118797,1735509032301,-297.51426753,0.00013695,2]
[347118799,1735509032311,-400.0,0.00013973,2]
[347118801,1735509032321,-290.3427454,0.00018878,2]
[347118803,1735509032330,-153.14299507,0.00019,2]
[347118805,1735509032343,-149.4334433,0.00019,2]
[347118807,1735509032352,-302.57643837,0.0001919,2]
[347118809,1735509032361,-43.19511833,0.0001938,2]
[347118812,1735509032373,-259.38132004,0.0001938,2]
[347118814,1735509032382,-302.57643837,0.0001957,2]
[347118816,1735509032391,-282.46724159,0.00019598,2]
[347118819,1735509032416,-4882.29032096,0.00019598,2]
[347118820,1735509032425,-302.57643837,0.0001976,2]
[347118822,1735509032435,-165.39945147,0.00019898,2]
[347118824,1735509032444,-279.26212548,0.0001995,4]
[347118825,1735509032455,-531.384,0.0001999,2]
[347118827,1735509032464,-300.0,0.00019996,2]
[347118829,1735509032474,-591.21320165,0.00019997,2]
[347118830,1735509032484,-500.0,0.00019997,2]
[347118832,1735509032493,-500.0,0.00019997,2]
[347118834,1735509032503,-500.0,0.00019997,2]
[347118835,1735509032513,-500.0,0.00019997,2]